[Event "Live Chess"]
[Site "Chess.com"]
[Date "2023.05.20"]
[Round "-"]
[White "Tushinskiy"]
[Black "Sir_Sigmund"]
[Result "0-1"]
[WhiteElo "2105"]
[BlackElo "1930"]
[TimeControl "300"]
[EndTime "12:09:53 PDT"]
[Termination "Sir_Sigmund won on time"]

1. d4 {[%clk 0:04:57.5]} 1... Nf6 {[%clk 0:04:58.6]} 2. c3 {[%clk 0:04:57.4]}
2... d6 {[%clk 0:04:56.9]} 3. Nf3 {[%clk 0:04:57.3]} 3... Bg4 {[%clk 0:04:54.9]}
4. Bf4 {[%clk 0:04:56.4]} 4... Bxf3 {[%clk 0:04:52.6]} 5. gxf3 {[%clk
0:04:56.3]} 5... Nbd7 {[%clk 0:04:51.2]} 6. Nd2 {[%clk 0:04:55.4]} 6... h6
{[%clk 0:04:48.4]} 7. e4 {[%clk 0:04:53.9]} 7... Nh5 {[%clk 0:04:47]} 8. Bg3
{[%clk 0:04:52.8]} 8... Nxg3 {[%clk 0:04:41.1]} 9. hxg3 {[%clk 0:04:52.7]} 9...
e6 {[%clk 0:04:39.1]} 10. Bd3 {[%clk 0:04:46.3]} 10... g6 {[%clk 0:04:37.8]} 11.
Qe2 {[%clk 0:04:42.7]} 11... Bg7 {[%clk 0:04:27.5]} 12. f4 {[%clk 0:04:41]}
12... Qe7 {[%clk 0:04:25.4]} 13. e5 {[%clk 0:04:39.5]} 13... dxe5 {[%clk
0:04:22.2]} 14. fxe5 {[%clk 0:04:39.4]} 14... O-O-O {[%clk 0:04:20.3]} 15. O-O-O
{[%clk 0:04:37.7]} 15... c5 {[%clk 0:04:14]} 16. Kb1 {[%clk 0:04:35.2]} 16...
cxd4 {[%clk 0:04:11.2]} 17. cxd4 {[%clk 0:04:35.1]} 17... Qb4 {[%clk 0:03:58.7]}
18. Rc1+ {[%clk 0:04:33.4]} 18... Kb8 {[%clk 0:03:57]} 19. Rc4 {[%clk
0:04:33.3]} 19... Qe7 {[%clk 0:03:48.4]} 20. Nb3 {[%clk 0:04:27]} 20... Nb6
{[%clk 0:03:47.1]} 21. Rc2 {[%clk 0:04:25.4]} 21... Rc8 {[%clk 0:03:41.6]} 22.
Rhc1 {[%clk 0:04:23.1]} 22... Rxc2 {[%clk 0:03:39.2]} 23. Rxc2 {[%clk 0:04:23]}
23... Rc8 {[%clk 0:03:38.7]} 24. f4 {[%clk 0:04:20.4]} 24... Rxc2 {[%clk
0:03:35.6]} 25. Bxc2 {[%clk 0:04:20.3]} 25... Qc7 {[%clk 0:03:34.8]} 26. g4
{[%clk 0:04:18.3]} 26... Nd5 {[%clk 0:03:31.8]} 27. f5 {[%clk 0:04:14.1]} 27...
gxf5 {[%clk 0:03:18.2]} 28. gxf5 {[%clk 0:04:14]} 28... Nb4 {[%clk 0:03:01.3]}
29. fxe6 {[%clk 0:04:06.7]} 29... fxe6 {[%clk 0:02:57.5]} 30. a3 {[%clk
0:04:01.1]} 30... Qxc2+ {[%clk 0:02:54.6]} 31. Qxc2 {[%clk 0:04:01]} 31... Nxc2
{[%clk 0:02:53.8]} 32. Kxc2 {[%clk 0:04:00.7]} 32... b6 {[%clk 0:02:48.6]} 33.
Kd3 {[%clk 0:03:58.9]} 33... h5 {[%clk 0:02:40.5]} 34. Ke4 {[%clk 0:03:57]}
34... Bh6 {[%clk 0:02:38.8]} 35. Kf3 {[%clk 0:03:55.3]} 35... Bg5 {[%clk
0:02:35.1]} 36. Kg3 {[%clk 0:03:54]} 36... Kc7 {[%clk 0:02:32.5]} 37. Kf3 {[%clk
0:03:52.2]} 37... Kc6 {[%clk 0:02:30.7]} 38. Na1 {[%clk 0:03:45.5]} 38... Bc1
{[%clk 0:02:20.3]} 39. Nc2 {[%clk 0:02:47.2]} 39... Bxb2 {[%clk 0:02:07.8]} 40.
Ke4 {[%clk 0:02:45.3]} 40... h4 {[%clk 0:02:01.8]} 41. Nb4+ {[%clk 0:02:42.8]}
41... Kb5 {[%clk 0:01:55.6]} 42. d5 {[%clk 0:02:42.7]} 42... Bxa3 {[%clk
0:01:43.8]} 43. dxe6 {[%clk 0:02:42.6]} 43... Bxb4 {[%clk 0:01:42.4]} 0-1

[Event "Live Chess"]
[Site "Chess.com"]
[Date "2023.05.20"]
[Round "-"]
[White "seabuck"]
[Black "ramses-IIG"]
[Result "1-0"]
[WhiteElo "1857"]
[BlackElo "789"]
[TimeControl "300"]
[EndTime "12:10:00 PDT"]
[Termination "seabuck won by checkmate"]

1. d4 {[%clk 0:04:58]} 1... d5 {[%clk 0:04:59.9]} 2. c4 {[%clk 0:04:56.4]} 2...
dxc4 {[%clk 0:04:58.4]} 3. Nc3 {[%clk 0:04:53.6]} 3... b5 {[%clk 0:04:58.3]} 4.
Nxb5 {[%clk 0:04:52]} 4... Ba6 {[%clk 0:04:51.1]} 5. Nc3 {[%clk 0:04:49.6]} 5...
Nc6 {[%clk 0:04:49.9]} 6. e3 {[%clk 0:04:44.5]} 6... e5 {[%clk 0:04:46.3]} 7.
Qa4 {[%clk 0:04:42]} 7... Bb7 {[%clk 0:04:38.5]} 8. d5 {[%clk 0:04:41]} 8... Nf6
{[%clk 0:04:25.4]} 9. dxc6 {[%clk 0:04:38.3]} 9... Bc8 {[%clk 0:04:19.4]} 10.
Bxc4 {[%clk 0:04:34.3]} 10... Bd6 {[%clk 0:04:00.6]} 11. Nf3 {[%clk 0:04:27.3]}
11... O-O {[%clk 0:03:54.9]} 12. e4 {[%clk 0:04:25.6]} 12... Ng4 {[%clk
0:03:42.2]} 13. h3 {[%clk 0:04:18]} 13... Nf6 {[%clk 0:03:37.6]} 14. Bg5 {[%clk
0:04:16.8]} 14... h6 {[%clk 0:03:35.7]} 15. Be3 {[%clk 0:04:15.7]} 15... a5
{[%clk 0:03:24.6]} 16. Rd1 {[%clk 0:04:12.5]} 16... Rb8 {[%clk 0:03:11.7]} 17.
Qc2 {[%clk 0:04:00.2]} 17... Nh5 {[%clk 0:03:01.7]} 18. Nxe5 {[%clk 0:03:45.3]}
18... Qf6 {[%clk 0:02:52.1]} 19. Nd7 {[%clk 0:03:31.2]} 19... Bxd7 {[%clk
0:02:47.9]} 20. cxd7 {[%clk 0:03:29.9]} 20... Rbd8 {[%clk 0:02:43]} 21. Bb5
{[%clk 0:03:19.6]} 21... Nf4 {[%clk 0:02:31.3]} 22. Bxf4 {[%clk 0:03:11]} 22...
Qxf4 {[%clk 0:02:31.2]} 23. Nd5 {[%clk 0:02:57.2]} 23... Qg5 {[%clk 0:02:05.5]}
24. O-O {[%clk 0:02:37.4]} 24... Qe5 {[%clk 0:01:58.7]} 25. f4 {[%clk
0:02:32.9]} 25... Qf6 {[%clk 0:01:45.9]} 26. e5 {[%clk 0:02:29.4]} 26... Qh4
{[%clk 0:01:34.8]} 27. exd6 {[%clk 0:02:25.6]} 27... cxd6 {[%clk 0:01:33.7]} 28.
Qf2 {[%clk 0:02:20.4]} 28... Qh5 {[%clk 0:01:25.6]} 29. Rfe1 {[%clk 0:02:11.4]}
29... Rb8 {[%clk 0:01:19.1]} 30. a4 {[%clk 0:02:00.3]} 30... Rb7 {[%clk
0:01:14.8]} 31. Qf3 {[%clk 0:01:49.8]} 31... Qxf3 {[%clk 0:01:12.6]} 32. gxf3
{[%clk 0:01:48.1]} 32... f6 {[%clk 0:01:07.3]} 33. Re8 {[%clk 0:01:45.7]} 33...
Kf7 {[%clk 0:01:02.2]} 34. Rxf8+ {[%clk 0:01:42.5]} 34... Kxf8 {[%clk
0:01:02.1]} 35. d8=Q+ {[%clk 0:01:41]} 35... Kf7 {[%clk 0:01:01.7]} 36. Qe8#
{[%clk 0:01:36.8]} 1-0

[Event "Live Chess"]
[Site "Chess.com"]
[Date "2023.05.20"]
[Round "-"]
[White "BostonStrangler"]
[Black "AbilifyXL"]
[Result "1-0"]
[WhiteElo "2060"]
[BlackElo "1946"]
[TimeControl "300"]
[EndTime "12:10:06 PDT"]
[Termination "BostonStrangler won by resignation"]

1. Nf3 {[%clk 0:04:57.4]} 1... d5 {[%clk 0:04:59.9]} 2. g3 {[%clk 0:04:55.8]}
2... c6 {[%clk 0:04:58.1]} 3. Bg2 {[%clk 0:04:54.7]} 3... Nf6 {[%clk 0:04:58]}
4. O-O {[%clk 0:04:53.8]} 4... Bf5 {[%clk 0:04:57.3]} 5. d3 {[%clk 0:04:52]}
5... e6 {[%clk 0:04:56.6]} 6. Nbd2 {[%clk 0:04:50.4]} 6... Nbd7 {[%clk
0:04:54.8]} 7. c4 {[%clk 0:04:45]} 7... Be7 {[%clk 0:04:52.9]} 8. Qb3 {[%clk
0:04:42.9]} 8... b6 {[%clk 0:04:48.8]} 9. cxd5 {[%clk 0:04:41.2]} 9... cxd5
{[%clk 0:04:47.6]} 10. e4 {[%clk 0:04:38]} 10... dxe4 {[%clk 0:04:44.6]} 11.
dxe4 {[%clk 0:04:34.2]} 11... Nxe4 {[%clk 0:04:38.6]} 12. Nd4 {[%clk 0:04:29.9]}
12... Nxd2 {[%clk 0:04:37]} 13. Bxd2 {[%clk 0:04:27.4]} 13... Rc8 {[%clk
0:04:24.2]} 14. Nc6 {[%clk 0:04:23.1]} 14... Qc7 {[%clk 0:04:21.9]} 15. Rac1
{[%clk 0:04:20.8]} 15... Nc5 {[%clk 0:04:18.2]} 16. Qb5 {[%clk 0:04:03.9]} 16...
O-O {[%clk 0:04:16.8]} 17. b4 {[%clk 0:03:57.5]} 17... Nd3 {[%clk 0:04:12.1]}
18. Rc3 {[%clk 0:03:52.6]} 18... Qd7 {[%clk 0:04:02.5]} 19. Nxe7+ {[%clk
0:03:43.1]} 19... Qxe7 {[%clk 0:04:01.3]} 20. Rxd3 {[%clk 0:03:40]} 20... Bxd3
{[%clk 0:03:59.3]} 21. Qxd3 {[%clk 0:03:39.9]} 21... Rfd8 {[%clk 0:03:57.4]} 22.
Qe3 {[%clk 0:03:36.2]} 22... Rc2 {[%clk 0:03:51.2]} 23. a4 {[%clk 0:03:31.6]}
23... Rcxd2 {[%clk 0:03:49.7]} 24. a5 {[%clk 0:03:27.2]} 24... bxa5 {[%clk
0:03:47.2]} 25. bxa5 {[%clk 0:03:26.1]} 25... Rd1 {[%clk 0:03:46.3]} 26. h4
{[%clk 0:03:23.2]} 26... Rxf1+ {[%clk 0:03:45.1]} 27. Bxf1 {[%clk 0:03:21.6]}
27... h6 {[%clk 0:03:43.6]} 28. a6 {[%clk 0:03:18.6]} 28... Qc7 {[%clk
0:03:39.8]} 29. Bg2 {[%clk 0:03:15.6]} 29... Qb6 {[%clk 0:03:37.6]} 30. Qxb6
{[%clk 0:03:13.1]} 30... axb6 {[%clk 0:03:36.6]} 31. a7 {[%clk 0:03:12.4]} 31...
Rd1+ {[%clk 0:03:30.9]} 32. Kh2 {[%clk 0:03:10.3]} 32... Ra1 {[%clk 0:03:30.4]}
33. a8=Q+ {[%clk 0:03:09.5]} 33... Rxa8 {[%clk 0:03:29.1]} 34. Bxa8 {[%clk
0:03:08.1]} 34... Kf8 {[%clk 0:03:29]} 35. Kg2 {[%clk 0:03:06.4]} 35... Ke7
{[%clk 0:03:28.9]} 36. Kf3 {[%clk 0:03:05.4]} 36... Kd6 {[%clk 0:03:28.8]} 37.
Ke4 {[%clk 0:03:04.4]} 37... Kc5 {[%clk 0:03:28.7]} 38. Kd3 {[%clk 0:03:02.8]}
38... f6 {[%clk 0:03:24.6]} 39. Bf3 {[%clk 0:02:58.2]} 39... b5 {[%clk
0:03:23.4]} 40. h5 {[%clk 0:02:55.2]} 40... e5 {[%clk 0:03:19.4]} 41. Bd1 {[%clk
0:02:53.9]} 41... b4 {[%clk 0:03:17.3]} 42. Bb3 {[%clk 0:02:50.7]} 42... Kb5
{[%clk 0:03:15.1]} 43. Ke4 {[%clk 0:02:49.4]} 43... Kc5 {[%clk 0:03:14.2]} 44.
f4 {[%clk 0:02:46.2]} 44... exf4 {[%clk 0:03:11.9]} 45. gxf4 {[%clk 0:02:44]}
45... Kd6 {[%clk 0:03:09.9]} 46. Kd4 {[%clk 0:02:38.4]} 46... Ke7 {[%clk
0:03:03]} 47. Kc4 {[%clk 0:02:32.4]} 47... f5 {[%clk 0:03:00.8]} 48. Kxb4 {[%clk
0:02:30]} 48... Kf6 {[%clk 0:03:00.1]} 49. Kc5 {[%clk 0:02:09.3]} 49... g6
{[%clk 0:02:59.2]} 50. hxg6 {[%clk 0:02:05.2]} 50... Kxg6 {[%clk 0:02:59.1]} 51.
Kd6 {[%clk 0:02:03.2]} 51... Kh5 {[%clk 0:02:58.3]} 52. Ke5 {[%clk 0:02:01.5]}
52... Kg4 {[%clk 0:02:57.3]} 53. Bd1+ {[%clk 0:01:57.9]} 53... Kg3 {[%clk
0:02:54.2]} 54. Kxf5 {[%clk 0:01:57]} 1-0

[Event "Live Chess"]
[Site "Chess.com"]
[Date "2023.05.20"]
[Round "-"]
[White "JoshMcK"]
[Black "domrobson"]
[Result "1-0"]
[WhiteElo "1563"]
[BlackElo "1745"]
[TimeControl "300"]
[EndTime "12:10:16 PDT"]
[Termination "JoshMcK won by resignation"]

1. e4 {[%clk 0:04:59.4]} 1... e5 {[%clk 0:04:59.4]} 2. Nf3 {[%clk 0:04:58.1]}
2... Nc6 {[%clk 0:04:57.7]} 3. Bb5 {[%clk 0:04:57.2]} 3... a6 {[%clk 0:04:56.4]}
4. Ba4 {[%clk 0:04:56.4]} 4... Nf6 {[%clk 0:04:54.9]} 5. O-O {[%clk 0:04:54]}
5... Nxe4 {[%clk 0:04:54.1]} 6. d4 {[%clk 0:04:52.5]} 6... b5 {[%clk 0:04:52.7]}
7. Bb3 {[%clk 0:04:51.3]} 7... d5 {[%clk 0:04:52.4]} 8. dxe5 {[%clk 0:04:50.4]}
8... Be6 {[%clk 0:04:51.9]} 9. c3 {[%clk 0:04:47.7]} 9... Bc5 {[%clk 0:04:50.8]}
10. Nbd2 {[%clk 0:04:46.4]} 10... O-O {[%clk 0:04:50]} 11. Bc2 {[%clk
0:04:42.8]} 11... Nxf2 {[%clk 0:04:48.2]} 12. Rxf2 {[%clk 0:04:41.3]} 12... f6
{[%clk 0:04:47.4]} 13. Nf1 {[%clk 0:04:40.4]} 13... Bxf2+ {[%clk 0:04:38.7]} 14.
Kxf2 {[%clk 0:04:40.3]} 14... fxe5 {[%clk 0:04:37.4]} 15. Kg1 {[%clk 0:04:38.8]}
15... Qf6 {[%clk 0:04:27.7]} 16. Bg5 {[%clk 0:04:30.3]} 16... Qg6 {[%clk
0:04:26.5]} 17. Bxg6 {[%clk 0:04:28.3]} 1-0

[Event "Live Chess"]
[Site "Chess.com"]
[Date "2023.05.20"]
[Round "-"]
[White "McSlash1"]
[Black "mightysmasher"]
[Result "1-0"]
[WhiteElo "2064"]
[BlackElo "2103"]
[TimeControl "300"]
[EndTime "12:10:23 PDT"]
[Termination "McSlash1 won by resignation"]

1. e4 {[%clk 0:04:59.3]} 1... e6 {[%clk 0:04:57.8]} 2. d4 {[%clk 0:04:58.4]}
2... d5 {[%clk 0:04:54.7]} 3. Nd2 {[%clk 0:04:57.8]} 3... dxe4 {[%clk
0:04:53.8]} 4. Nxe4 {[%clk 0:04:57.7]} 4... c5 {[%clk 0:04:52.2]} 5. Nf3 {[%clk
0:04:54.6]} 5... Nc6 {[%clk 0:04:50.3]} 6. c3 {[%clk 0:04:47.5]} 6... cxd4
{[%clk 0:04:48.8]} 7. cxd4 {[%clk 0:04:47.4]} 7... Nf6 {[%clk 0:04:47.8]} 8.
Nxf6+ {[%clk 0:04:46]} 8... Qxf6 {[%clk 0:04:46.4]} 9. Bd3 {[%clk 0:04:45.6]}
9... Bd7 {[%clk 0:04:45]} 10. Bg5 {[%clk 0:04:43.1]} 10... Bb4+ {[%clk
0:04:39.8]} 11. Kf1 {[%clk 0:04:40.5]} 1-0

[Event "Live Chess"]
[Site "Chess.com"]
[Date "2023.05.20"]
[Round "-"]
[White "Leonid_Starozhilov"]
[Black "Olisingapore"]
[Result "1-0"]
[WhiteElo "2653"]
[BlackElo "1904"]
[TimeControl "300"]
[EndTime "12:10:26 PDT"]
[Termination "Leonid_Starozhilov won by resignation"]

1. e4 {[%clk 0:04:58.8]} 1... c5 {[%clk 0:04:49.4]} 2. Nf3 {[%clk 0:04:57.4]}
2... d6 {[%clk 0:04:48.7]} 3. Bb5+ {[%clk 0:04:55.8]} 3... Nd7 {[%clk
0:04:47.4]} 4. O-O {[%clk 0:04:54.2]} 4... a6 {[%clk 0:04:46.7]} 5. Bxd7+ {[%clk
0:04:53.1]} 5... Bxd7 {[%clk 0:04:46.6]} 6. c3 {[%clk 0:04:52.5]} 6... Nf6
{[%clk 0:04:46.5]} 7. Re1 {[%clk 0:04:52]} 7... e5 {[%clk 0:04:39.4]} 8. d4
{[%clk 0:04:49.4]} 8... cxd4 {[%clk 0:04:38.3]} 9. cxd4 {[%clk 0:04:46.3]} 9...
exd4 {[%clk 0:04:37.5]} 10. Nxd4 {[%clk 0:04:45.1]} 10... Be7 {[%clk 0:04:33.1]}
11. Nc3 {[%clk 0:04:44.1]} 11... O-O {[%clk 0:04:31.8]} 12. Bf4 {[%clk
0:04:43.6]} 12... Rc8 {[%clk 0:04:20.8]} 13. Rc1 {[%clk 0:04:33.6]} 13... b5
{[%clk 0:04:10.1]} 14. Nb3 {[%clk 0:04:27.1]} 14... Qb6 {[%clk 0:04:01.2]} 15.
Bg5 {[%clk 0:04:16.2]} 15... Be6 {[%clk 0:03:55.5]} 16. Nd4 {[%clk 0:03:41.2]}
16... b4 {[%clk 0:03:52.1]} 17. Nd5 {[%clk 0:03:16.3]} 17... Nxd5 {[%clk
0:03:48.1]} 18. exd5 {[%clk 0:03:02.3]} 18... Bxg5 {[%clk 0:03:38.9]} 19. Rc6
{[%clk 0:02:27]} 19... Rxc6 {[%clk 0:03:23.6]} 20. dxc6 {[%clk 0:02:22.3]} 20...
Bd5 {[%clk 0:03:12.2]} 21. h4 {[%clk 0:02:03.2]} 21... Bf6 {[%clk 0:03:10.4]}
22. Nf5 {[%clk 0:01:58.9]} 22... Qxc6 {[%clk 0:03:00.4]} 23. Qg4 {[%clk
0:01:56.4]} 23... Be6 {[%clk 0:02:38.5]} 24. h5 {[%clk 0:01:45]} 24... Qd5
{[%clk 0:02:22.7]} 25. Ne3 {[%clk 0:01:43.4]} 25... Bxg4 {[%clk 0:02:19.5]} 26.
Nxd5 {[%clk 0:01:42.4]} 26... Bxh5 {[%clk 0:02:13.4]} 27. Nxb4 {[%clk
0:01:41.4]} 27... Bxb2 {[%clk 0:02:10.5]} 28. Nxa6 {[%clk 0:01:38.4]} 28... g6
{[%clk 0:02:03.7]} 29. Nc7 {[%clk 0:01:35.5]} 29... Rc8 {[%clk 0:02:01.6]} 30.
Nd5 {[%clk 0:01:34.1]} 30... Be5 {[%clk 0:01:56.5]} 31. Ne7+ {[%clk 0:01:31.4]}
31... Kf8 {[%clk 0:01:54.8]} 32. Nxc8 {[%clk 0:01:31.3]} 32... Ke8 {[%clk
0:01:54.2]} 33. Nxd6+ {[%clk 0:01:30.2]} 33... Kd7 {[%clk 0:01:53.5]} 34. Rxe5
{[%clk 0:01:29.5]} 34... Kxd6 {[%clk 0:01:51.8]} 35. Rxh5 {[%clk 0:01:28.6]}
35... gxh5 {[%clk 0:01:50.9]} 36. Kh2 {[%clk 0:01:28.2]} 36... Kc5 {[%clk
0:01:48.2]} 37. Kh3 {[%clk 0:01:27.8]} 37... Kb4 {[%clk 0:01:44.9]} 38. Kh4
{[%clk 0:01:27.4]} 38... Ka3 {[%clk 0:01:44.5]} 39. Kxh5 {[%clk 0:01:27.1]}
39... Kxa2 {[%clk 0:01:44.1]} 40. Kh6 {[%clk 0:01:26.7]} 40... Kb3 {[%clk
0:01:43.9]} 41. Kxh7 {[%clk 0:01:26.1]} 41... Kc4 {[%clk 0:01:43.7]} 42. Kg7
{[%clk 0:01:25.6]} 42... Kd4 {[%clk 0:01:43.6]} 43. Kxf7 {[%clk 0:01:25]} 43...
Ke4 {[%clk 0:01:43.5]} 44. Kf6 {[%clk 0:01:24.5]} 44... Kd3 {[%clk 0:01:42.8]}
45. g4 {[%clk 0:01:23.9]} 45... Ke4 {[%clk 0:01:41.5]} 46. g5 {[%clk 0:01:22.9]}
46... Kf3 {[%clk 0:01:41.4]} 47. g6 {[%clk 0:01:22.6]} 47... Kxf2 {[%clk
0:01:41.3]} 48. g7 {[%clk 0:01:22.5]} 48... Kf3 {[%clk 0:01:40.5]} 49. g8=Q
{[%clk 0:01:22.2]} 49... Ke4 {[%clk 0:01:40.3]} 50. Qe6+ {[%clk 0:01:21.5]}
50... Kd4 {[%clk 0:01:39.6]} 51. Qe5+ {[%clk 0:01:20.7]} 51... Kd3 {[%clk
0:01:39.5]} 52. Qf4 {[%clk 0:01:19.8]} 52... Ke2 {[%clk 0:01:38.2]} 53. Qg3
{[%clk 0:01:19.1]} 53... Kf1 {[%clk 0:01:35.3]} 54. Qh2 {[%clk 0:01:15.7]} 1-0

[Event "Live Chess"]
[Site "Chess.com"]
[Date "2023.05.20"]
[Round "-"]
[White "Goblinbasher"]
[Black "worldchessleaguelive"]
[Result "0-1"]
[WhiteElo "1201"]
[BlackElo "1370"]
[TimeControl "300"]
[EndTime "12:10:27 PDT"]
[Termination "worldchessleaguelive won by checkmate"]

1. e4 {[%clk 0:04:54]} 1... d5 {[%clk 0:04:58]} 2. exd5 {[%clk 0:04:50]} 2...
Qxd5 {[%clk 0:04:56.5]} 3. d4 {[%clk 0:04:47.8]} 3... Nf6 {[%clk 0:04:54.8]} 4.
Nc3 {[%clk 0:04:46.4]} 4... Qd8 {[%clk 0:04:53.6]} 5. Nf3 {[%clk 0:04:43.2]}
5... Bf5 {[%clk 0:04:51.1]} 6. Bc4 {[%clk 0:04:39.3]} 6... e6 {[%clk 0:04:50]}
7. O-O {[%clk 0:04:35.9]} 7... Be7 {[%clk 0:04:48.2]} 8. Ne5 {[%clk 0:04:25.6]}
8... Nbd7 {[%clk 0:04:41.9]} 9. Nf3 {[%clk 0:04:21.7]} 9... O-O {[%clk
0:04:39.9]} 10. Bd3 {[%clk 0:04:12.6]} 10... Bxd3 {[%clk 0:04:37.9]} 11. Qxd3
{[%clk 0:04:10.1]} 11... Nb6 {[%clk 0:04:36.8]} 12. Bd2 {[%clk 0:04:01.9]} 12...
Nbd5 {[%clk 0:04:35.6]} 13. Ne5 {[%clk 0:03:57.2]} 13... Nxc3 {[%clk 0:04:32.1]}
14. bxc3 {[%clk 0:03:55.6]} 14... Bd6 {[%clk 0:04:28.7]} 15. Qg3 {[%clk
0:03:46.5]} 15... Ne4 {[%clk 0:04:11.8]} 16. Qe3 {[%clk 0:03:25.9]} 16... Nxd2
{[%clk 0:04:07.4]} 17. Qxd2 {[%clk 0:03:16.1]} 17... Bxe5 {[%clk 0:04:05]} 18.
Rae1 {[%clk 0:03:06.3]} 18... Bf6 {[%clk 0:03:59.2]} 19. Re4 {[%clk 0:03:00.3]}
19... c5 {[%clk 0:03:57.5]} 20. Rg4 {[%clk 0:02:55.2]} 20... cxd4 {[%clk
0:03:54.9]} 21. cxd4 {[%clk 0:02:51.2]} 21... Qb6 {[%clk 0:03:51.4]} 22. c4
{[%clk 0:02:41.9]} 22... Rad8 {[%clk 0:03:44.7]} 23. Rd1 {[%clk 0:02:37.6]}
23... Qa6 {[%clk 0:03:31.3]} 24. Qb2 {[%clk 0:02:10.6]} 24... Qxc4 {[%clk
0:03:21.9]} 25. Rc1 {[%clk 0:01:59.2]} 25... Qd5 {[%clk 0:03:12.2]} 26. Rc5
{[%clk 0:01:54.2]} 26... Qf5 {[%clk 0:03:06.1]} 27. Rxf5 {[%clk 0:01:47.6]}
27... exf5 {[%clk 0:03:03.8]} 28. Rf4 {[%clk 0:01:44.5]} 28... Rfe8 {[%clk
0:02:47.9]} 29. g3 {[%clk 0:01:40.7]} 29... g6 {[%clk 0:02:44.5]} 30. Qd2 {[%clk
0:01:26.4]} 30... Rd5 {[%clk 0:02:35.3]} 31. h4 {[%clk 0:01:18.6]} 31... Red8
{[%clk 0:02:33.6]} 32. Qb2 {[%clk 0:01:12.2]} 32... b6 {[%clk 0:02:29.6]} 33.
Qa3 {[%clk 0:01:05.9]} 33... Ra5 {[%clk 0:02:21]} 34. Qb2 {[%clk 0:00:54.3]}
34... Rad5 {[%clk 0:02:18.2]} 35. Qc2 {[%clk 0:00:48.7]} 35... Bxd4 {[%clk
0:02:06.6]} 36. Rxd4 {[%clk 0:00:46.7]} 36... Rxd4 {[%clk 0:02:05]} 37. Qc7
{[%clk 0:00:46.2]} 37... R8d7 {[%clk 0:02:01.5]} 38. Qb8+ {[%clk 0:00:44.3]}
38... Kg7 {[%clk 0:01:56.8]} 39. Qe5+ {[%clk 0:00:43]} 39... f6 {[%clk
0:01:53.4]} 40. Qe3 {[%clk 0:00:41.3]} 40... Re4 {[%clk 0:01:47.5]} 41. Qc3
{[%clk 0:00:35.9]} 41... Rde7 {[%clk 0:01:42.9]} 42. h5 {[%clk 0:00:33.2]} 42...
gxh5 {[%clk 0:01:37.7]} 43. Qa3 {[%clk 0:00:25.7]} 43... Kg6 {[%clk 0:01:36]}
44. f4 {[%clk 0:00:19.1]} 44... Re1+ {[%clk 0:01:32.6]} 45. Kg2 {[%clk
0:00:17.9]} 45... R7e2+ {[%clk 0:01:30.9]} 46. Kh3 {[%clk 0:00:16.7]} 46... Rh1#
{[%clk 0:01:28.8]} 0-1

[Event "Live Chess"]
[Site "Chess.com"]
[Date "2023.05.20"]
[Round "-"]
[White "wot-not"]
[Black "Sidharth2008"]
[Result "1-0"]
[WhiteElo "1480"]
[BlackElo "1094"]
[TimeControl "300"]
[EndTime "12:10:37 PDT"]
[Termination "wot-not won by resignation"]

1. e4 {[%clk 0:04:56.9]} 1... b6 {[%clk 0:04:59.9]} 2. f4 {[%clk 0:04:55.6]}
2... Bb7 {[%clk 0:04:59.8]} 3. e5 {[%clk 0:04:54.1]} 3... d6 {[%clk 0:04:56.9]}
4. Nf3 {[%clk 0:04:53.7]} 4... Bxf3 {[%clk 0:04:53.4]} 5. Qxf3 {[%clk
0:04:51.6]} 5... dxe5 {[%clk 0:04:53.3]} 6. Qxa8 {[%clk 0:04:50.3]} 6... exf4
{[%clk 0:04:47.2]} 7. Bb5+ {[%clk 0:04:49.3]} 7... c6 {[%clk 0:04:45.5]} 8.
Bxc6+ {[%clk 0:04:42.9]} 8... Nxc6 {[%clk 0:04:44.6]} 9. Qxc6+ {[%clk
0:04:42.2]} 9... Qd7 {[%clk 0:04:42.7]} 10. Qxd7+ {[%clk 0:04:41.2]} 10... Kxd7
{[%clk 0:04:42.6]} 11. O-O {[%clk 0:04:40.5]} 11... e5 {[%clk 0:04:41.5]} 12. d4
{[%clk 0:04:39.4]} 12... exd4 {[%clk 0:04:38.9]} 13. Bxf4 {[%clk 0:04:38.5]}
13... Bc5 {[%clk 0:04:37.1]} 14. Kh1 {[%clk 0:04:35.5]} 14... f6 {[%clk
0:04:34.9]} 15. Nd2 {[%clk 0:04:34.5]} 15... g5 {[%clk 0:04:32.5]} 16. Bg3
{[%clk 0:04:32.7]} 16... h5 {[%clk 0:04:31.4]} 17. Nb3 {[%clk 0:04:29.7]} 17...
h4 {[%clk 0:04:28.6]} 18. Bf2 {[%clk 0:04:27.3]} 18... g4 {[%clk 0:04:25.7]} 19.
Bxd4 {[%clk 0:04:25.9]} 19... Bxd4 {[%clk 0:04:16.9]} 20. Nxd4 {[%clk
0:04:24.3]} 20... h3 {[%clk 0:04:14.1]} 21. g3 {[%clk 0:04:19.3]} 21... Nh6
{[%clk 0:04:04.7]} 22. Rxf6 {[%clk 0:04:17.1]} 1-0

[Event "Live Chess"]
[Site "Chess.com"]
[Date "2023.05.20"]
[Round "-"]
[White "bigedd"]
[Black "lHolyDiverl"]
[Result "1-0"]
[WhiteElo "769"]
[BlackElo "555"]
[TimeControl "300"]
[EndTime "12:10:39 PDT"]
[Termination "bigedd won by resignation"]

1. e4 {[%clk 0:04:51]} 1... c6 {[%clk 0:04:58.7]} 2. d4 {[%clk 0:04:48.9]} 2...
d5 {[%clk 0:04:57.6]} 3. exd5 {[%clk 0:04:42.1]} 3... cxd5 {[%clk 0:04:55.4]} 4.
Nc3 {[%clk 0:04:41]} 4... Nf6 {[%clk 0:04:51.5]} 5. Bb5+ {[%clk 0:04:38.1]} 5...
Nc6 {[%clk 0:04:50.1]} 6. Bg5 {[%clk 0:04:32.9]} 6... Bd7 {[%clk 0:04:43.5]} 7.
Nf3 {[%clk 0:04:29]} 7... a6 {[%clk 0:04:36.1]} 8. Ba4 {[%clk 0:04:25.5]} 8...
b5 {[%clk 0:04:27.5]} 9. Bb3 {[%clk 0:04:24.1]} 9... Bg4 {[%clk 0:04:17]} 10. h3
{[%clk 0:04:16.2]} 10... Bf5 {[%clk 0:04:01.4]} 11. O-O {[%clk 0:04:10.5]} 11...
e6 {[%clk 0:03:33]} 12. Re1 {[%clk 0:04:01.8]} 12... Bb4 {[%clk 0:02:52.6]} 13.
Nxd5 {[%clk 0:03:43.1]} 13... Nxd5 {[%clk 0:02:46.1]} 14. Bxd8 {[%clk
0:03:39.2]} 14... Rxd8 {[%clk 0:02:40.5]} 15. c3 {[%clk 0:03:37]} 15... Bd6
{[%clk 0:02:26.6]} 16. Bxd5 {[%clk 0:03:28.1]} 1-0

[Event "Live Chess"]
[Site "Chess.com"]
[Date "2023.05.20"]
[Round "-"]
[White "PLZ909"]
[Black "MarkLim1"]
[Result "0-1"]
[WhiteElo "1267"]
[BlackElo "1674"]
[TimeControl "300"]
[EndTime "12:10:39 PDT"]
[Termination "MarkLim1 won by resignation"]

1. d4 {[%clk 0:04:57.6]} 1... Nf6 {[%clk 0:04:58.8]} 2. Bf4 {[%clk 0:04:57]}
2... c5 {[%clk 0:04:57.5]} 3. Nf3 {[%clk 0:04:56.9]} 3... e6 {[%clk 0:04:54.2]}
4. c3 {[%clk 0:04:56.1]} 4... Qb6 {[%clk 0:04:53]} 5. Qb3 {[%clk 0:04:53.8]}
5... Qxb3 {[%clk 0:04:50.7]} 6. axb3 {[%clk 0:04:53.7]} 6... cxd4 {[%clk
0:04:49.6]} 7. cxd4 {[%clk 0:04:53.6]} 7... Nc6 {[%clk 0:04:48.5]} 8. e3 {[%clk
0:04:50.5]} 8... Nb4 {[%clk 0:04:47.3]} 9. Nbd2 {[%clk 0:04:32]} 9... Nc2+
{[%clk 0:04:45.6]} 10. Ke2 {[%clk 0:04:28.5]} 10... Nxa1 {[%clk 0:04:45.5]} 11.
Ke1 {[%clk 0:04:28]} 0-1